bitfinex-derivatives/quotes_BTCF0:USTF0_20250308
["timestamp","ask_amount","ask_price","bid_price","bid_amount"]
[1741408341422,0.3320969,86159.0,86158.0,0.28520485]
[1741408341927,0.3320969,86159.0,86158.0,0.16910655]
[1741408342126,0.3320969,86159.0,86158.0,0.28520485]
[1741408343618,0.3320969,86159.0,86158.0,0.16910655]
[1741408344019,0.216,86159.0,86158.0,0.3274114]
[1741408344322,0.216,86159.0,86156.0,0.3608]
[1741408344323,0.1160996,86157.0,86156.0,0.3608]
[1741408345028,0.05084862,86157.0,86156.0,0.3608]
[1741408345420,0.24514485,86159.0,86156.0,0.4608]
[1741408345618,0.1160996,86157.0,86156.0,0.4608]
[1741408345814,0.1160996,86157.0,86156.0,0.3608]
[1741408347221,0.1160996,86157.0,86154.0,0.00884854]
[1741408347222,0.1161023,86155.0,86154.0,0.00884854]
[1741408347530,0.1161037,86154.0,86153.0,0.2308]
[1741408347829,0.2330037,86154.0,86153.0,0.00879137]
[1741408348921,0.1169,86154.0,86153.0,0.12489637]
[1741408349225,0.1169,86154.0,86153.0,0.45509637]
[1741408350131,0.1169,86154.0,86153.0,0.39730292]
[1741408350826,0.4775746,86161.0,86160.0,0.1160956]
[1741408351029,0.0580411,86170.0,86163.0,0.1160915]
[1741408351238,0.2290843,86169.0,86163.0,0.2160915]
[1741408351425,0.1160849,86168.0,86163.0,0.2160915]
[1741408352137,0.1169,86167.0,86163.0,0.2160915]
[1741408352734,0.1169,86167.0,86163.0,0.3341915]
[1741408353126,0.1169,86167.0,86163.0,0.27639805]
[1741408353731,0.1169,86167.0,86163.0,0.17639805]
[1741408354029,0.00174119,86174.0,86163.0,0.2181]
[1741408354335,0.00174119,86174.0,86173.0,0.1160781]
[1741408354634,0.00174119,86174.0,86173.0,0.2160781]
[1741408354841,0.00174119,86174.0,86173.0,0.3300781]
[1741408355131,0.11781789,86174.0,86173.0,0.2300781]
[1741408355328,0.11781789,86174.0,86173.0,0.3300781]
[1741408355529,0.11781789,86174.0,86173.0,0.4449781]
[1741408355938,0.11781789,86174.0,86173.0,0.2289]
[1741408356435,0.11781789,86174.0,86173.0,0.17154718]
[1741408357132,0.1737371,86176.0,86173.0,0.17154718]
[1741408357335,0.1160767,86174.0,86173.0,0.17154718]
[1741408358134,0.1160767,86174.0,86173.0,0.27154718]
[1741408358431,0.1160767,86174.0,86173.0,0.05664718]
[1741408358638,0.1160781,86173.0,86172.0,0.08334208]
[1741408358839,0.2267781,86173.0,86172.0,0.08334208]
[1741408359225,0.2267781,86173.0,86172.0,0.02554863]
[1741408360737,0.1160821,86170.0,86169.0,4e-05]
[1741408360930,0.2267786,86173.0,86172.0,0.1160794]
[1741408361130,0.2267787,86173.0,86172.0,0.1160794]
[1741408361839,0.2267787,86173.0,86172.0,0.2269794]
[1741408362025,0.1107,86173.0,86172.0,0.1109]
[1741408362226,0.00068,86184.0,86181.0,0.05827385]
[1741408362430,0.0580171,86206.0,86192.0,0.1160524]
[1741408362431,0.0580224,86198.0,86192.0,0.1160524]
[1741408362733,0.1160498,86194.0,86193.0,0.2292]
[1741408363438,0.1673231,86197.0,69662.0,62.29052]
[1741408363439,0.1093,86197.0,86180.0,0.13985248]
[1741408363626,0.0580304,86186.0,86182.0,0.1160646]
[1741408363937,0.1160646,86183.0,86182.0,0.3321296]
[1741408364140,0.2253627,86185.0,86184.0,0.1160633]
[1741408364640,0.1093,86185.0,86184.0,0.2160633]
[1741408364839,0.1093,86185.0,86184.0,0.4419633]
[1741408365435,0.04407657,86185.0,86184.0,0.38416985]
[1741408365639,0.1160545,86191.0,86190.0,0.1]
[1741408365834,0.0580231,86197.0,86190.0,0.1]
[1741408366049,0.1160515,86193.0,86191.0,0.1108]
[1741408366233,0.1160515,86193.0,86192.0,0.116052]
[1741408366432,0.1160515,86193.0,86192.0,0.216052]
[1741408366626,0.1160515,86193.0,86192.0,0.1108]
[1741408366828,0.1160515,86193.0,86192.0,0.3268525]
[1741408367026,0.1160515,86193.0,86192.0,0.26883]
[1741408367442,0.1160515,86193.0,86192.0,0.3848825]
[1741408368139,0.1662209,86200.0,86192.0,0.3848825]
[1741408368140,0.1082,86200.0,86192.0,0.26883]
[1741408368338,0.05819631,86198.0,86193.0,0.05825715]
[1741408368540,0.1160477,86196.0,86195.0,0.1160483]
[1741408368837,0.05819631,86198.0,86195.0,0.1160483]
[1741408368838,0.00017411,86198.0,86196.0,0.1160471]
[1741408369039,0.13985248,86250.0,86196.0,0.1160471]
[1741408369040,0.0580015,86229.0,86210.0,0.1160283]
[1741408369344,0.1160159,86220.0,86210.0,0.5768283]
[1741408369639,0.00017626,86211.0,86210.0,0.5768283]
[1741408369835,1.731e-05,86211.0,86210.0,0.5768283]
[1741408370037,0.1147,86240.0,86222.0,0.3160121]
[1741408370227,0.3608,86250.0,86222.0,0.3160121]
[1741408370228,0.00060001,86233.0,86228.0,0.576804]
[1741408370429,0.115998,86233.0,86231.0,0.1159989]
[1741408370637,0.00017399,86234.0,86232.0,0.1145]
[1741408370836,0.00017399,86234.0,86233.0,0.1159973]
[1741408371342,0.00017399,86234.0,86233.0,0.1145]
[1741408371543,0.11616999,86234.0,86233.0,0.17205087]
[1741408371738,0.11616999,86234.0,86233.0,0.28804817]
[1741408372443,0.00017399,86234.0,86233.0,0.28804817]
[1741408372738,0.11616999,86234.0,86233.0,0.28804817]
[1741408373041,0.1159973,86233.0,86232.0,9.789e-05]
[1741408373432,0.4767973,86233.0,86232.0,9.789e-05]
[1741408373832,0.1160135,86221.0,86220.0,0.00017399]
[1741408374028,0.1160135,86221.0,86220.0,0.05704657]
[1741408374236,0.1160135,86221.0,86220.0,0.00017399]
[1741408374440,0.0580057,86223.0,86215.0,0.05828054]
[1741408374645,0.1160202,86216.0,86215.0,0.05828054]
[1741408374831,0.1160202,86216.0,86215.0,0.1136]
[1741408375035,0.1160202,86216.0,86215.0,0.17249008]
[1741408375235,0.116017,86219.0,86215.0,0.17249008]
[1741408375429,0.0580436,86226.0,86215.0,0.17249008]
[1741408375430,4e-05,86226.0,86215.0,0.27249008]
[1741408375635,4e-05,86226.0,86225.0,0.1160081]
[1741408375839,4e-05,86226.0,86225.0,0.2160081]
[1741408376040,4e-05,86226.0,86225.0,0.1160081]
[1741408376341,0.0580322,86243.0,86225.0,0.1160081]
[1741408376342,0.00174019,86236.0,86225.0,0.1]
[1741408376540,0.00174019,86236.0,86233.0,0.1159973]
[1741408377344,0.00174019,86236.0,86233.0,0.2159973]
[1741408377542,0.00174019,86236.0,86233.0,0.05820385]
[1741408377739,0.00174019,86236.0,86233.0,0.25350385]
[1741408378746,0.00024496,86234.0,86233.0,0.25350385]
[1741408379341,0.00024496,86234.0,86233.0,0.15820385]
[1741408379741,0.11624096,86234.0,86233.0,0.1]
[1741408379947,0.11624096,86234.0,86233.0,0.212]
[1741408380142,0.00024496,86234.0,86233.0,0.3279973]
[1741408380445,0.00024496,86234.0,86233.0,0.27020385]
[1741408380742,0.00024496,86234.0,86233.0,0.3279973]
[1741408381245,0.00024496,86234.0,86233.0,0.212]
[1741408381544,0.11624096,86234.0,86233.0,0.212]
[1741408382646,0.1160013,86230.0,86229.0,0.3608]
[1741408382951,0.3608,86230.0,86210.0,0.14836945]
[1741408383140,0.0580014,86229.0,86213.0,0.1160241]
[1741408383345,0.0580014,86229.0,86220.0,0.13985248]
[1741408383646,0.3608,86230.0,86220.0,0.18205903]
[1741408383947,0.1160121,86222.0,86221.0,0.1086]
[1741408385740,0.1160135,86221.0,86220.0,0.08205903]
[1741408385946,0.2273135,86221.0,86220.0,0.08205903]
[1741408386637,0.2273135,86221.0,86216.0,0.225]
[1741408386638,0.1160188,86217.0,86216.0,0.225]
[1741408386838,0.1160188,86217.0,86216.0,0.2175]
[1741408387048,0.1160188,86217.0,86216.0,0.1175]
[1741408387645,0.2252188,86217.0,86216.0,0.1175]
[1741408388042,0.2252188,86217.0,86216.0,0.2175]
[1741408388339,0.2252188,86217.0,86216.0,0.3292]
[1741408388945,0.1092,86217.0,86215.0,0.05929846]
[1741408389149,0.1160269,86211.0,86210.0,0.13985248]
[1741408389350,0.1160296,86209.0,86207.0,0.3608]
[1741408389652,0.1160309,86208.0,86207.0,0.311898]
[1741408389851,0.2316309,86208.0,86207.0,0.311898]
[1741408390356,0.16642529,86208.0,86207.0,0.311898]
[1741408390651,0.1156,86208.0,86204.0,0.00173987]
[1741408390842,0.1665161,86207.0,86204.0,0.10173987]
[1741408391048,0.1665161,86207.0,86206.0,0.1160336]
[1741408391647,0.1085,86207.0,86206.0,0.1160336]
[1741408391958,0.1085,86207.0,86206.0,0.2341336]
[1741408392152,0.1085,86207.0,86206.0,0.3449336]
[1741408392350,0.2245323,86207.0,86206.0,0.2289]
[1741408392751,0.2245323,86207.0,86206.0,0.17110655]
[1741408393053,0.2245323,86207.0,86206.0,0.1108]
[1741408393255,0.1085,86207.0,86206.0,0.3268336]
[1741408393556,0.1085,86207.0,86206.0,0.2108]
[1741408394141,0.1085,86207.0,86206.0,0.3268336]
[1741408395361,0.1085,86207.0,86206.0,0.4431336]
[1741408395754,4e-05,86217.0,86206.0,0.26930655]
[1741408395961,0.00068,86222.0,86217.0,0.0580094]
[1741408396146,4e-05,86225.0,86213.0,0.0580117]
[1741408396147,0.11108,86224.0,86223.0,0.1160108]
[1741408396347,0.11108,86224.0,86223.0,0.2313108]
[1741408398749,0.11108,86224.0,86223.0,0.17351735]
[1741408398961,0.11108,86224.0,86223.0,0.29141735]
[1741408400649,0.0458868,86224.0,86223.0,0.39141735]
[1741408400851,0.00017399,86232.0,86228.0,0.216004]
[1741408401052,0.00017399,86232.0,86231.0,0.116]
[1741408401262,0.00017399,86232.0,86231.0,0.216]
[1741408401663,0.00017399,86232.0,86231.0,0.27481739]
[1741408401964,0.00017399,86232.0,86231.0,0.21702394]
[1741408404857,0.00017399,86232.0,86231.0,0.27481739]
[1741408405465,0.36097399,86232.0,86231.0,0.05881739]
[1741408405668,0.36097399,86232.0,86222.0,0.3608]
[1741408405864,0.1160108,86223.0,86222.0,0.05843223]
[1741408406064,0.3608,86224.0,86216.0,0.07944]
[1741408406264,0.3370121,86222.0,86216.0,0.07944]
[1741408406564,0.221,86222.0,86221.0,0.00017399]
[1741408406769,0.3370121,86222.0,86221.0,0.00017399]
[1741408407761,0.3370121,86222.0,86219.0,0.00138643]
[1741408407962,0.0580068,86221.0,86217.0,0.1076]
[1741408408162,0.1160174,86219.0,86217.0,0.1076]
[1741408408358,0.2237,86220.0,86219.0,0.1160161]
[1741408408565,0.116014,86221.0,86220.0,0.1076]
[1741408409174,0.116014,86221.0,86220.0,0.2076]
[1741408410872,0.1160113,86223.0,86220.0,0.14980655]
[1741408411175,0.36140001,86224.0,86221.0,0.0580067]
[1741408411377,0.3608,86224.0,86223.0,0.1160108]
[1741408411975,4e-05,86228.0,86225.0,0.1160072]
[1741408412276,4e-05,86228.0,86227.0,0.2160054]
[1741408412580,0.05084517,86230.0,86227.0,0.2160054]
[1741408413170,0.000774,86232.0,86227.0,0.1]
[1741408413379,0.00017399,86232.0,86230.0,0.116]
[1741408413968,0.00017399,86232.0,86230.0,0.05820655]
[1741408414776,0.11617269,86232.0,86228.0,0.2320031]
[1741408415177,0.11617269,86232.0,86229.0,0.1160024]
[1741408415880,0.00017399,86232.0,86231.0,0.116]
[1741408416179,0.00017399,86232.0,86230.0,0.2271008]
[1741408416386,0.00017399,86232.0,86230.0,0.1160008]
[1741408416980,0.00017399,86232.0,86225.0,0.4768076]
[1741408417176,0.116002,86230.0,86226.0,0.1160055]
[1741408417377,0.00017399,86232.0,86230.0,0.2160006]
[1741408418680,0.00017399,86232.0,86231.0,0.1]
[1741408418884,0.11617329,86232.0,86229.0,0.1160024]
[1741408419080,0.00017399,86232.0,86231.0,0.116]
[1741408419281,0.00017399,86232.0,86231.0,0.3259]
[1741408420081,0.00017399,86232.0,86231.0,0.26810655]
[1741408420973,0.00017399,86232.0,86231.0,0.05820655]
[1741408421386,0.00017399,86232.0,86231.0,0.15820655]
[1741408421690,0.00017399,86232.0,86231.0,0.27360655]
[1741408422984,0.00017399,86232.0,86231.0,0.2158131]
[1741408423188,7.097e-05,86234.0,86231.0,0.2154]
[1741408423388,0.4187946,86239.0,86231.0,0.1154]
[1741408423583,0.0579959,86237.0,86228.0,0.25585638]
[1741408423780,0.1160005,86231.0,86229.0,0.24155133]
[1741408423983,0.06384772,86231.0,86229.0,0.12554863]
[1741408424182,0.06384772,86231.0,86230.0,0.1160013]
[1741408424486,0.04216806,86234.0,86230.0,0.1160013]
[1741408424792,0.1159992,86232.0,86230.0,0.14154903]
[1741408424980,0.1159992,86232.0,86231.0,0.116]
[1741408425394,0.1159968,86234.0,86232.0,0.1159984]
[1741408425894,0.0579968,86236.0,86234.0,0.2159959]
[1741408426085,0.1159973,86233.0,86232.0,0.2259985]
[1741408426287,0.1159973,86233.0,86232.0,0.2267985]
[1741408426483,0.1159973,86233.0,86232.0,0.1159985]
[1741408427187,0.2248,86235.0,86234.0,0.115996]
[1741408427390,0.1787997,86235.0,86234.0,0.115996]
[1741408427985,0.1787997,86235.0,86234.0,0.14154463]
[1741408428487,0.1787997,86235.0,86234.0,0.25784463]
[1741408429090,0.1787997,86235.0,86234.0,0.20005118]
[1741408431292,0.1787997,86235.0,86234.0,0.24184863]
[1741408431684,0.2947943,86235.0,86234.0,0.14184863]
[1741408431888,0.1787997,86235.0,86234.0,0.34954863]
[1741408432087,0.1787997,86235.0,86234.0,0.2077]
[1741408432494,0.1787997,86235.0,86234.0,0.323696]
[1741408432700,0.09912467,86235.0,86234.0,0.323696]
[1741408433590,0.08495106,86239.0,86235.0,0.1159936]
[1741408433785,4e-05,86249.0,86234.0,0.3165]
[1741408433986,0.1159913,86238.0,86235.0,0.1159941]
[1741408434188,0.1159913,86238.0,86236.0,0.2188]
[1741408435092,0.1159913,86238.0,86236.0,0.16100655]
[1741408435295,0.1113,86237.0,86236.0,0.16100655]
[1741408435899,0.1113,86237.0,86236.0,0.35972533]
[1741408436597,0.1113,86237.0,86236.0,0.27699985]
[1741408437096,0.2272919,86237.0,86236.0,0.16100655]
[1741408437285,0.1113,86237.0,86236.0,0.37699985]
[1741408438088,0.1113,86237.0,86236.0,0.3192064]
[1741408438992,0.1113,86237.0,86236.0,0.2032131]
[1741408439198,0.2272919,86237.0,86236.0,0.2032131]
[1741408439598,0.2272919,86237.0,86231.0,0.05799]
[1741408439599,0.1159983,86233.0,86231.0,0.05799]
[1741408439800,0.2301987,86232.0,86231.0,0.1]
[1741408440003,0.1160027,86229.0,86226.0,0.07876]
[1741408440296,0.1160027,86229.0,86228.0,0.08289947]
[1741408440498,0.4768027,86229.0,86228.0,0.08289947]
[1741408440702,0.1160027,86229.0,86228.0,0.08289947]
[1741408441205,0.1160048,86228.0,86225.0,0.2320137]
[1741408441509,0.2331054,86227.0,86226.0,0.2185]
[1741408441707,0.2331054,86227.0,86226.0,0.1185]
[1741408441900,0.2331054,86227.0,86226.0,0.2185]
[1741408442101,0.2331054,86227.0,86226.0,0.1185]
[1741408444108,0.14471151,86227.0,86226.0,0.1185]
[1741408444409,0.05081407,86225.0,86224.0,0.1]
[1741408445004,0.05081407,86225.0,86224.0,0.18272548]
[1741408445701,0.0291354,86226.0,86224.0,0.18272548]
[1741408446000,0.1160081,86225.0,86224.0,0.29873438]
[1741408446399,0.1160081,86225.0,86224.0,0.18272548]
[1741408446600,0.1160058,86227.0,86226.0,0.1160062]
[1741408447003,0.1160058,86227.0,86226.0,0.2160062]
[1741408447196,0.1160058,86227.0,86226.0,0.05821275]
[1741408447396,0.1762024,86228.0,86226.0,0.1160061]
[1741408447610,0.1160054,86227.0,86226.0,0.2160061]
[1741408448013,0.06384967,86227.0,86226.0,0.2160061]
[1741408448515,0.06384967,86227.0,86226.0,0.08272548]
[1741408449411,0.06384967,86227.0,86226.0,0.19873218]
[1741408450106,0.06384967,86227.0,86226.0,0.1160067]
[1741408450300,0.06384967,86227.0,86226.0,0.15821325]
[1741408451499,0.06384967,86227.0,86226.0,0.05821325]
[1741408451917,0.06384967,86227.0,86226.0,0.15821325]
[1741408453208,0.1160074,86226.0,86224.0,0.1160084]
[1741408453408,0.2303074,86226.0,86225.0,0.15430655]
[1741408453812,0.2303074,86226.0,86225.0,0.27031465]
[1741408454210,0.1651129,86226.0,86225.0,0.27031465]
[1741408454411,0.1143,86226.0,86225.0,0.27031465]
[1741408455512,4e-05,86232.0,86231.0,0.216]
[1741408456114,4e-05,86232.0,86231.0,0.29872548]
[1741408456416,0.1159924,86237.0,86234.0,0.115996]
[1741408456604,0.3608,86235.0,86234.0,0.115996]
[1741408457515,0.1158,86236.0,86232.0,0.24972428]
[1741408457706,0.1158,86234.0,86233.0,0.19872278]
[1741408458015,0.03612183,86234.0,86233.0,0.30772278]
[1741408458317,0.03612183,86234.0,86233.0,0.40772278]
[1741408459609,0.15211783,86234.0,86233.0,0.08272548]
[1741408461114,0.26271783,86234.0,86233.0,0.08272548]
[1741408461514,0.26271783,86234.0,86233.0,0.1092]
[1741408462419,0.26271783,86234.0,86233.0,0.05140655]
[1741408462723,0.1159973,86233.0,86232.0,0.76039398]
[1741408462923,0.1159973,86233.0,86232.0,0.75895398]
[1741408463111,0.3529973,86233.0,86232.0,0.75895398]
[1741408464522,0.28780603,86233.0,86232.0,0.75895398]
[1741408465424,0.237,86233.0,86232.0,0.70116053]
[1741408465623,0.237,86233.0,86232.0,0.91715923]
[1741408465817,0.3529973,86233.0,86232.0,0.91715923]
[1741408466318,0.3529973,86233.0,86232.0,0.80116053]
[1741408466515,0.3529973,86233.0,86232.0,0.93656053]
[1741408467022,0.2347973,86233.0,86232.0,0.93656053]
[1741408467407,0.2347973,86233.0,86232.0,0.82066053]
[1741408468423,0.0580376,86235.0,86232.0,0.82066053]
[1741408468424,4e-05,86235.0,86232.0,0.82066053]
[1741408468627,0.36148,86237.0,86234.0,0.1]
[1741408468827,0.098341,86236.0,86235.0,0.3354946]
[1741408469717,0.1160298,86239.0,86237.0,0.1159918]
[1741408469916,0.1160298,86239.0,86238.0,0.2195]
[1741408470215,0.1160298,86239.0,86238.0,0.30222548]
[1741408470524,4e-05,86239.0,86238.0,0.41821608]
[1741408470828,4e-05,86239.0,86238.0,0.46039784]
[1741408471019,0.03635411,86243.0,86238.0,0.46039784]
[1741408471227,0.1159877,86241.0,86238.0,0.46039784]
[1741408471426,0.115988,86240.0,86238.0,0.46039784]
[1741408471613,0.115988,86240.0,86238.0,0.31987891]
[1741408471815,0.1084,86239.0,86238.0,0.31987891]
[1741408472927,0.0579898,86247.0,86239.0,0.0579946]
[1741408472928,0.1159827,86244.0,86239.0,0.0579946]
[1741408473116,0.1084,86241.0,86240.0,0.2257879]
[1741408474124,0.1159826,86244.0,86241.0,0.1159856]
[1741408474329,0.1159826,86244.0,86242.0,0.1148]
[1741408474514,0.1084,86243.0,86242.0,0.05700655]
[1741408474919,0.04321529,86243.0,86242.0,0.05700655]
[1741408475522,0.04321529,86243.0,86242.0,0.15700655]
[1741408475733,0.15919919,86243.0,86242.0,0.27150655]
[1741408475933,0.15919919,86243.0,86242.0,0.2145]
[1741408476226,4e-05,86255.0,86254.0,0.1159691]
[1741408476431,0.1125,86264.0,86255.0,0.1159669]
[1741408476622,4e-05,86260.0,86254.0,0.09144316]
[1741408476932,0.1159648,86258.0,86255.0,0.1145]
[1741408477232,0.1159648,86258.0,86256.0,0.08272548]
[1741408477533,0.1149,86257.0,86256.0,0.02493203]
[1741408477936,0.1149,86257.0,86255.0,0.1125]
[1741408478123,0.1086,86256.0,86255.0,0.1125]
[1741408478327,0.2245664,86256.0,86255.0,0.25298301]
[1741408479140,0.2245664,86256.0,86255.0,0.14048301]
[1741408479432,0.14490857,86256.0,86255.0,0.14048301]
[1741408479632,0.07973435,86256.0,86255.0,0.14048301]
[1741408482135,0.1149,86257.0,86255.0,0.14048301]
[1741408482435,0.1149,86257.0,86256.0,0.1159664]
[1741408482636,0.230865,86257.0,86256.0,0.1159664]
[1741408483127,0.1149,86257.0,86256.0,0.1159664]
[1741408483635,0.1149,86257.0,86256.0,0.17477295]
[1741408484635,0.230865,86257.0,86256.0,0.1166]
[1741408484841,0.1159664,86256.0,86255.0,0.04924762]
[1741408485041,0.1159664,86256.0,86255.0,0.1]
[1741408485540,0.1159691,86254.0,86251.0,0.1159728]
[1741408485835,0.3417,86253.0,86251.0,0.1159728]
[1741408486041,0.4576708,86253.0,86251.0,0.1159728]
[1741408486337,0.3433708,86253.0,86251.0,0.2262728]
[1741408486542,0.3433708,86253.0,86251.0,0.26803226]
[1741408486750,0.3433708,86253.0,86251.0,0.21023881]
[1741408487045,0.1159718,86252.0,86251.0,0.15205946]
[1741408487435,0.2302718,86252.0,86251.0,0.15205946]
[1741408487635,0.2302718,86252.0,86251.0,0.04175946]
[1741408487835,0.1143,86252.0,86250.0,0.3608]
[1741408488036,0.4767731,86251.0,86250.0,0.00860732]
[1741408488237,0.1159758,86249.0,86248.0,0.0419582]
[1741408488432,0.1159758,86249.0,86248.0,0.00017399]
[1741408488640,0.1159758,86249.0,86248.0,0.11615109]
[1741408488947,0.1143,86250.0,86249.0,0.1159758]
[1741408489147,0.1143,86250.0,86249.0,0.2255758]
[1741408489444,0.03463819,86250.0,86249.0,0.2255758]
[1741408489743,0.1159722,86252.0,86250.0,0.115974]
[1741408490144,0.1159722,86252.0,86251.0,0.1096]
[1741408491044,0.1159722,86252.0,86251.0,0.2255731]
[1741408491350,0.1159722,86252.0,86251.0,0.3255731]
[1741408492336,0.1159722,86252.0,86251.0,0.2096]
[1741408492834,0.1159722,86252.0,86251.0,0.15180655]
[1741408493042,0.1107,86252.0,86251.0,0.26777965]
[1741408493243,0.2266718,86252.0,86251.0,0.26777965]
[1741408494645,0.2266718,86252.0,86251.0,0.15180655]
[1741408494847,0.1159758,86249.0,86248.0,0.04102877]
[1741408495749,0.2256,86251.0,86245.0,0.09921642]
[1741408495948,0.1159789,86247.0,86246.0,0.1]
[1741408496141,0.1159789,86247.0,86246.0,0.3215]
[1741408496648,0.1159789,86247.0,86246.0,0.36330678]
[1741408498046,0.1159789,86247.0,86246.0,0.47928658]
[1741408498853,0.1159789,86247.0,86246.0,0.37928658]
[1741408500841,0.2282755,86250.0,86249.0,0.1159758]
[1741408501154,0.1123,86250.0,86249.0,0.1159758]
[1741408501939,0.1123,86250.0,86249.0,0.05818235]
[1741408503647,0.04712287,86250.0,86249.0,0.05818235]
[1741408504452,0.1159718,86252.0,86249.0,0.05818235]
[1741408504453,0.08343374,86252.0,86251.0,0.1159731]
[1741408504956,0.08343374,86252.0,86251.0,0.05817965]
[1741408505160,0.08343374,86252.0,86251.0,0.28167965]
[1741408507749,0.20203374,86252.0,86251.0,0.28167965]
[1741408507943,0.1186,86252.0,86251.0,0.2235]
[1741408508255,0.1186,86252.0,86251.0,0.3394731]
[1741408508648,0.1186,86252.0,86251.0,0.5320731]
[1741408508848,0.1186,86252.0,86251.0,0.3394731]
[1741408509248,0.05342335,86252.0,86251.0,0.3394731]
[1741408509450,0.16939515,86252.0,86251.0,0.3394731]
[1741408509848,0.16939515,86252.0,86251.0,0.1132]
[1741408510048,0.28769515,86252.0,86251.0,0.1132]
[1741408511054,0.28769515,86252.0,86251.0,0.05540655]
[1741408514047,0.1159771,86248.0,86247.0,0.38972901]
[1741408514256,0.1159771,86248.0,86247.0,0.1063131]
[1741408514855,0.2333771,86248.0,86247.0,0.1063131]
[1741408516463,0.2333771,86248.0,86235.0,0.0579915]
[1741408516464,0.1159749,86241.0,86240.0,0.74001044]
[1741408516765,0.06382697,86241.0,86240.0,0.73861044]
[1741408517161,0.15854308,86243.0,86240.0,0.68081699]
[1741408517361,0.1159749,86241.0,86240.0,0.68081699]
[1741408519861,0.2273749,86241.0,86240.0,0.68081699]
[1741408520060,0.2273749,86241.0,86240.0,0.62302354]
[1741408523070,0.2273749,86241.0,86240.0,0.56523009]
[1741408524669,0.2273749,86241.0,86240.0,0.00873044]
[1741408524864,0.1159763,86240.0,86239.0,0.1147]
[1741408525071,0.1114,86241.0,86239.0,0.23932598]
[1741408525258,0.0579801,86252.0,86241.0,0.0579872]
[1741408525459,0.0579801,86252.0,86247.0,0.057983]
[1741408525660,0.1159655,86249.0,86248.0,0.2339636]
[1741408526167,4e-05,86253.0,86248.0,0.118]
[1741408526374,0.057979,86254.0,86248.0,0.118]
[1741408526375,0.1159642,86249.0,86248.0,0.118]
[1741408526567,0.05078526,86249.0,86248.0,0.118]
[1741408527169,0.04358732,86251.0,86248.0,0.118]
[1741408527471,0.1071,86250.0,86248.0,0.118]
[1741408527861,0.1159642,86249.0,86248.0,0.118]
[1741408528261,0.1159642,86249.0,86248.0,0.2339655]
[1741408529262,0.1159642,86249.0,86248.0,0.17617205]
[1741408529573,0.1159642,86250.0,86249.0,0.1159642]
[1741408531174,0.2262592,86253.0,86251.0,0.1159602]
[1741408531367,0.2262592,86253.0,86252.0,0.1152]
[1741408532259,0.2262592,86253.0,86252.0,0.05740655]
[1741408532466,0.2262592,86253.0,86252.0,0.17460655]
[1741408532666,0.13211739,86253.0,86252.0,0.17460655]
[1741408532865,0.1159592,86253.0,86252.0,0.17460655]
[1741408533275,0.0579783,86255.0,86252.0,0.17460655]
[1741408533578,0.1159599,86253.0,86252.0,0.57398266]
[1741408534077,0.0579762,86258.0,86252.0,0.57398266]
[1741408534478,0.1159569,86255.0,86254.0,0.1159571]
[1741408535077,0.1159569,86255.0,86254.0,0.1662801]
[1741408535275,0.0579769,86257.0,86256.0,0.1159548]
[1741408535476,0.1762755,86259.0,86254.0,0.10848665]
[1741408535477,0.1159552,86256.0,86255.0,0.108]
[1741408535776,4e-05,86260.0,86259.0,0.1159507]
[1741408535972,0.00010315,86270.0,86262.0,0.0579729]
[1741408536282,0.00010315,86270.0,86269.0,0.1159373]
[1741408536574,0.1159303,86275.0,86265.0,0.3608]
[1741408536779,0.3337,86279.0,86268.0,0.108]
[1741408536981,0.3337,86279.0,86269.0,0.20904316]
[1741408537181,0.115936,86270.0,86269.0,0.20904316]
[1741408537369,0.0579562,86288.0,86269.0,0.1176]
[1741408537696,0.2256,86287.0,86277.0,0.3608]
[1741408537873,0.0579606,86281.0,86278.0,0.2272]
[1741408538077,0.1159239,86279.0,86278.0,0.2272]
[1741408538272,0.1159239,86279.0,86278.0,0.16940655]
[1741408539081,0.2340239,86279.0,86278.0,0.16940655]
[1741408540183,0.2340239,86279.0,86278.0,0.22163729]
[1741408541280,0.2340239,86279.0,86278.0,0.16384384]
[1741408544280,0.2340239,86279.0,86278.0,0.10605039]
[1741408546081,0.0579606,86281.0,86278.0,0.22197429]
[1741408546274,0.1159234,86280.0,86278.0,0.22197429]
[1741408546480,0.1159239,86279.0,86278.0,0.10605039]
[1741408547383,0.1159239,86279.0,86278.0,0.04825694]
[1741408547570,0.1159239,86279.0,86278.0,0.1089]
[1741408547774,0.1159239,86279.0,86278.0,0.15945883]
[1741408547971,0.1159232,86280.0,86279.0,0.1159238]
[1741408548176,0.2889607,86281.0,86278.0,0.27538313]
[1741408548472,0.2889607,86281.0,86280.0,0.1159225]
[1741408548782,0.00017388,86282.0,86281.0,0.1159212]
[1741408548978,0.00017388,86282.0,86281.0,0.1138]
[1741408549374,0.00017388,86282.0,86281.0,0.2297212]
[1741408549687,4e-05,86311.0,86289.0,0.1923]
[1741408549877,0.3608,86323.0,86310.0,0.1923]
[1741408550177,0.1158715,86318.0,86317.0,0.3608]
[1741408550381,0.1158715,86318.0,86317.0,0.30300655]
[1741408550579,0.1097,86320.0,86319.0,0.1158701]
[1741408550783,0.00017378,86326.0,86320.0,0.1158685]
[1741408551083,0.00017378,86326.0,86321.0,8.426e-05]
[1741408551281,0.11334,86340.0,86325.0,0.1158621]
[1741408551486,0.2254,86339.0,86330.0,0.49980646]
[1741408551668,0.2254,86339.0,86332.0,0.1]
[1741408551669,0.115848,86336.0,86332.0,0.1]
[1741408551972,0.11585,86334.0,86333.0,0.113]
[1741408552172,0.2254,86339.0,86333.0,0.113]
[1741408552369,0.1158483,86336.0,86333.0,0.113]
[1741408552574,0.1092,86338.0,86333.0,0.113]
[1741408552881,0.1092,86338.0,86334.0,0.1122]
[1741408552882,0.1158483,86336.0,86334.0,0.1122]
[1741408553084,0.1158326,86347.0,86336.0,0.1923]
[1741408553288,0.1122,86349.0,86346.0,0.1]
[1741408553586,0.1122,86349.0,86348.0,0.1158312]
[1741408554079,0.1122,86349.0,86348.0,0.2280312]
[1741408554582,0.00011562,86357.0,86348.0,0.16323307]
[1741408554787,0.1158286,86350.0,86349.0,0.1]
[1741408554977,0.1158299,86349.0,86348.0,0.00010278]
[1741408555174,0.2329299,86349.0,86348.0,0.00010278]
[1741408555879,0.4779,86349.0,86340.0,0.00017378]
[1741408556077,0.4766406,86341.0,86340.0,0.00017378]
[1741408556486,0.115854,86331.0,86330.0,0.30318033]
[1741408556984,0.115854,86331.0,86330.0,0.30323497]
[1741408558382,0.228854,86332.0,86331.0,0.115854]
[1741408558688,0.115854,86331.0,86330.0,0.30323497]
[1741408559085,0.336454,86331.0,86330.0,0.41909037]
[1741408559585,0.336454,86331.0,86330.0,0.11591004]